bitfinex/quotes_SOLUSD_20250609
["timestamp","ask_amount","ask_price","bid_price","bid_amount"]
[1749489285716,19.71494595,156.64,156.62,58.37181043]
[1749489286028,19.71494595,156.63,156.62,18.79181043]
[1749489286201,26.0,156.66,156.61,10.42]
[1749489286407,26.0,156.66,156.6,0.14216157]
[1749489286739,26.0,156.66,156.61,10.4]
[1749489287034,19.71494595,156.62,156.61,10.4]
[1749489287610,26.09982655,156.62,156.61,10.4]
[1749489288028,26.09982655,156.62,156.59,10.4]
[1749489288203,19.71494595,156.6,156.59,29.04964886]
[1749489288403,19.71494595,156.6,156.55,21.28244595]
[1749489288602,19.71494595,156.58,156.56,29.04964886]
[1749489288802,19.71494595,156.58,156.57,0.14216157]
[1749489289036,19.71494595,156.58,156.57,0.28432314]
[1749489289229,19.71494595,156.58,156.57,29.19181043]
[1749489289739,26.10145763,156.58,156.57,29.19181043]
[1749489291331,6.38651168,156.58,156.57,29.19181043]
[1749489291521,6.38612259,156.59,156.57,29.19181043]
[1749489291722,19.71494595,156.58,156.57,29.19181043]
[1749489291923,19.71494595,156.58,156.57,10.54216157]
[1749489292430,19.71494595,156.58,156.57,10.4]
[1749489293433,6.38528829,156.61,156.57,10.4]
[1749489293730,15.9622015,156.62,156.57,10.54216157]
[1749489293731,19.71494595,156.58,156.57,10.54216157]
[1749489293913,19.71494595,156.58,156.55,10.54216157]
[1749489294129,19.71494595,156.56,156.55,10.4]
[1749489295632,6.38773554,156.55,156.51,38.4404]
[1749489295838,19.71494595,156.54,156.52,29.04964886]
[1749489296042,19.71494595,156.54,156.53,0.14216157]
[1749489296641,26.10268149,156.55,156.53,0.14216157]
[1749489297133,5.89821728,156.66,156.54,26.0]
[1749489297340,6.38284291,156.67,156.63,18.64964886]
[1749489297636,6.38162093,156.7,156.64,0.14216157]
[1749489297836,19.71494595,156.68,156.66,0.14216157]
[1749489298027,6.38162093,156.7,156.66,0.14216157]
[1749489298221,19.71494595,156.67,156.66,0.14216157]
[1749489298634,19.71494595,156.67,156.64,40.02]
[1749489298821,19.71494595,156.66,156.64,40.02]
[1749489299223,29.35138202,156.66,156.64,40.02]
[1749489299425,29.35138202,156.68,156.65,18.933972]
[1749489299923,29.35138202,156.67,156.65,18.933972]
[1749489300625,29.35138202,156.68,156.65,18.933972]
[1749489300827,29.35138202,156.67,156.65,18.933972]
[1749489302343,6.38251053,156.68,156.65,18.933972]
[1749489302344,29.35138202,156.68,156.65,18.933972]
[1749489302644,29.35138202,156.67,156.65,18.933972]
[1749489302840,35.73395677,156.68,156.65,18.933972]
[1749489303026,29.35138202,156.67,156.65,18.933972]
[1749489303427,11.0948955,156.7,156.65,18.933972]
[1749489303635,29.35138202,156.69,156.65,18.933972]
[1749489303933,4.71300951,156.73,156.65,18.933972]
[1749489303934,5.89821728,156.75,156.67,18.933972]
[1749489304135,26.0,156.72,156.69,0.28432314]
[1749489304327,31.71825812,156.71,156.69,0.28432314]
[1749489304650,29.35138202,156.71,156.69,0.28432314]
[1749489305025,26.0,156.72,156.69,0.28432314]
[1749489305355,2.36682664,156.71,156.69,18.933972]
[1749489305544,31.71820944,156.71,156.69,18.933972]
[1749489305727,29.35138202,156.72,156.69,18.933972]
[1749489306047,2.36682664,156.71,156.69,18.933972]
[1749489306227,6.38103541,156.72,156.69,18.933972]
[1749489306429,29.35138202,156.71,156.69,18.933972]
[1749489306856,6.38103541,156.72,156.69,18.933972]
[1749489307337,35.73241743,156.72,156.69,18.933972]
[1749489307539,29.35138202,156.71,156.69,18.79181043]
[1749489307856,29.35138202,156.7,156.69,18.79181043]
[1749489308022,35.73300295,156.7,156.69,18.79181043]
[1749489308646,29.35138202,156.71,156.69,18.79181043]
[1749489308832,4.7182626,156.73,156.7,0.14216157]
[1749489309046,35.73180113,156.73,156.7,0.14216157]
[1749489309247,5.88041911,156.73,156.71,18.79181043]
[1749489310126,6.38007775,156.74,156.71,0.14216157]
[1749489310435,11.09753164,156.76,156.73,18.933972]
[1749489310637,35.73065106,156.76,156.74,50.42]
[1749489310829,35.73065106,156.76,156.74,29.19181043]
[1749489310830,34.06964462,156.75,156.74,29.19181043]
[1749489311029,4.7182626,156.75,156.74,10.4]
[1749489311230,34.06964462,156.75,156.72,18.64964886]
[1749489311425,29.35138202,156.73,156.71,40.16216157]
[1749489311644,29.35138202,156.72,156.7,10.4]
[1749489311857,29.35138202,156.71,156.69,18.79181043]
[1749489312065,6.3820282,156.69,156.68,18.64964886]
[1749489312238,6.3812137,156.71,156.67,39.75138202]
[1749489312543,6.3812137,156.71,156.69,18.64964886]
[1749489312926,6.3812137,156.71,156.7,0.14216157]
[1749489313733,35.73259572,156.71,156.69,0.14216157]
[1749489314046,6.3820282,156.69,156.68,18.64964886]
[1749489314452,6.3820282,156.69,156.68,18.79181043]
[1749489314634,35.73341022,156.69,156.68,18.64964886]
[1749489314956,35.73341022,156.69,156.68,18.79181043]
[1749489315329,29.35138202,156.71,156.68,18.79181043]
[1749489315858,29.35138202,156.72,156.69,0.28432314]
[1749489316258,4.73289151,156.72,156.69,0.28432314]
[1749489316461,29.35138202,156.71,156.69,0.28432314]
[1749489316764,29.35138202,156.7,156.69,0.28432314]
[1749489317059,34.08427353,156.72,156.69,0.28432314]
[1749489317663,29.35138202,156.72,156.69,0.28432314]
[1749489318261,6.3812137,156.71,156.69,0.28432314]
[1749489318763,35.7323414,156.72,156.69,0.28432314]
[1749489319157,6.38095938,156.72,156.69,0.28432314]
[1749489319354,47.86610289,156.74,156.71,0.14216157]
[1749489319355,6.38056568,156.73,156.71,0.14216157]
[1749489319950,12.29622215,156.74,156.71,0.28432314]
[1749489320469,12.29622456,156.74,156.71,0.28432314]
[1749489320962,29.35138202,156.75,156.73,0.28432314]
[1749489320963,6.37968278,156.75,156.73,0.28432314]
[1749489321873,19.54497895,156.76,156.73,18.933972]
[1749489322172,8.74476339,156.77,156.73,0.28432314]
[1749489322344,28.28972896,156.77,156.75,0.14216157]
[1749489322545,25.92375039,156.77,156.75,0.14216157]
[1749489322849,6.37877144,156.77,156.75,0.14216157]
[1749489323164,19.54497895,156.76,156.74,18.64964886]
[1749489323365,19.54497895,156.75,156.74,18.79181043]
[1749489323743,6.37877144,156.77,156.74,18.79181043]
[1749489324258,6.37852035,156.78,156.75,0.28432314]
[1749489324459,19.54497895,156.76,156.75,0.14216157]
[1749489324646,21.91134467,156.76,156.73,10.7]
[1749489324967,21.91134467,156.76,156.74,18.79181043]
[1749489324968,19.54497895,156.76,156.74,18.79181043]
[1749489325463,19.54497895,156.78,156.75,0.14216157]
[1749489325667,26.0,156.82,156.75,18.933972]
[1749489325968,19.54497895,156.78,156.75,18.933972]
[1749489326348,6.37755102,156.8,156.75,18.933972]
[1749489326549,19.54497895,156.78,156.75,18.933972]
[1749489326793,6.37755102,156.8,156.75,18.933972]
[1749489326794,19.54497895,156.77,156.75,18.933972]
[1749489326977,19.54497895,156.76,156.75,18.79181043]
[1749489327471,4.72800261,156.79,156.75,18.79181043]
[1749489327684,19.54497895,156.76,156.74,18.64964886]
[1749489327973,19.54497895,156.75,156.74,18.79181043]
[1749489328170,19.54497895,156.75,156.73,10.7]
[1749489328359,25.92497129,156.74,156.73,29.34964886]
[1749489328677,41.87495215,156.74,156.69,18.64964886]
[1749489328847,19.54497895,156.71,156.69,18.64964886]
[1749489329056,19.54497895,156.71,156.7,0.14216157]
[1749489329372,19.54497895,156.71,156.69,18.64964886]
[1749489329883,22.3299732,156.74,156.69,18.64964886]
[1749489330052,22.3299732,156.74,156.7,0.14216157]
[1749489330247,6.37999234,156.74,156.7,0.28432314]
[1749489330565,48.32712426,156.76,156.7,0.28432314]
[1749489330762,19.54497895,156.73,156.7,0.28432314]
[1749489330963,19.54497895,156.72,156.7,0.28432314]
[1749489331865,19.54497895,156.71,156.7,0.28432314]
[1749489332462,19.54497895,156.71,156.7,0.14216157]
[1749489332778,25.92619265,156.71,156.69,18.64964886]
[1749489332962,19.54497895,156.7,156.69,18.79181043]
[1749489333846,6.3812137,156.71,156.68,10.7]
[1749489334047,19.54497895,156.7,156.68,10.7]
[1749489334550,6.3819134,156.7,156.68,10.7]
[1749489335060,25.92689235,156.7,156.68,10.7]
[1749489335354,25.92689235,156.7,156.68,29.49181043]
[1749489335355,19.54497895,156.69,156.68,29.49181043]
[1749489335556,19.54497895,156.69,156.68,10.7]
[1749489335853,6.3819134,156.7,156.69,18.79181043]
[1749489336760,6.3813428,156.71,156.69,18.79181043]
[1749489336946,6.38039941,156.73,156.71,18.79181043]
[1749489337746,25.92537836,156.73,156.71,0.14216157]
[1749489338566,6.38039941,156.73,156.71,0.14216157]
[1749489340574,4.74881164,156.75,156.73,0.14216157]
[1749489340764,6.37961952,156.75,156.73,0.14216157]
[1749489341477,6.37961952,156.75,156.73,18.79181043]
[1749489341800,6.37961952,156.75,156.73,0.14216157]
[1749489342163,11.12816696,156.75,156.73,0.14216157]
[1749489344174,6.37961952,156.75,156.73,0.14216157]
[1749489344771,25.92459847,156.75,156.73,0.14216157]
[1749489345181,25.92459847,156.75,156.72,0.14216157]
[1749489345364,19.54497895,156.73,156.72,0.14216157]
[1749489345557,19.54497895,156.73,156.7,18.79181043]
[1749489345760,71.95135649,156.79,156.7,18.79181043]
[1749489345761,0.8816377,156.86,156.73,34.26156157]
[1749489345957,0.36563407,156.94,156.9,20.0]
[1749489346282,4.75199647,157.09,156.97,44.933972]
[1749489346488,4.75199647,157.09,156.97,100.513972]
[1749489346663,5.08940891,157.11,156.97,126.42959502]
[1749489346859,5.08940891,157.11,157.03,0.28432314]
[1749489346860,11.45438331,157.11,157.03,0.28432314]
[1749489347069,19.54497895,157.09,157.03,43.50216157]
[1749489347284,6.36537237,157.1,157.0,6.1852]
[1749489347285,29.21310161,157.08,157.01,48.14707361]
[1749489347494,43.45753433,157.09,157.03,29.21310161]
[1749489347794,14.24443272,157.09,157.05,29.21310161]
[1749489347972,40.27915226,157.12,157.06,29.21310161]
[1749489348178,25.78361036,157.11,157.07,69.38]
[1749489348358,0.8816377,157.18,157.08,29.21310161]
[1749489348558,26.0,157.14,157.09,29.21310161]
[1749489348761,29.21310161,157.15,157.09,29.21310161]
[1749489349269,22.26888081,157.17,157.09,29.21310161]
[1749489349472,29.21310161,157.14,157.08,29.21310161]
[1749489349665,29.21310161,157.14,157.07,18.64964886]
[1749489349666,29.21310161,157.09,157.05,43.50216157]
[1749489349984,29.21310161,157.1,157.05,72.71526318]
[1749489350283,55.21310161,157.12,157.06,29.21310161]
[1749489350483,35.57806883,157.11,157.06,29.21310161]
[1749489350703,6.36496722,157.11,157.03,72.51310161]
[1749489350860,6.36496722,157.11,157.04,47.86275047]
[1749489351897,6.36496722,157.11,157.04,18.64964886]
[1749489352186,29.21310161,157.05,157.01,18.79181043]
[1749489352364,29.21310161,157.05,157.01,91.24491204]
[1749489352689,29.21310161,157.05,157.01,62.03181043]
[1749489353388,29.21310161,157.05,157.01,91.24491204]
[1749489353585,35.58053349,157.05,157.01,91.24491204]
[1749489354066,29.21310161,157.06,157.02,29.21310161]
[1749489354477,29.21310161,157.07,157.02,29.21310161]
[1749489354680,35.58009511,157.06,157.02,29.21310161]
[1749489355083,22.27029778,157.16,157.06,18.64964886]
[1749489355262,22.27029778,157.16,157.11,29.21310161]
[1749489355461,22.27029778,157.16,157.12,29.21310161]
[1749489355684,48.27029778,157.16,157.12,29.21310161]
[1749489355858,22.27029778,157.16,157.11,29.21310161]
[1749489356274,51.48339939,157.16,157.1,29.21310161]
[1749489356488,29.21310161,157.15,157.09,29.21310161]
[1749489356864,29.21310161,157.1,157.04,18.64964886]
[1749489357015,29.21310161,157.05,157.0,6.1852]
[1749489357182,29.21310161,157.04,157.0,6.1852]
[1749489357795,12.82,157.09,157.0,35.39830161]
[1749489357992,12.82,157.09,157.02,29.21310161]
[1749489358207,29.21310161,157.06,157.02,29.21310161]
[1749489358395,12.82,157.09,157.01,47.86275047]
[1749489358396,29.21310161,157.05,157.01,47.86275047]
[1749489358575,6.36780438,157.04,157.01,47.86275047]
[1749489358774,6.36780438,157.04,157.01,18.64964886]
[1749489358971,6.36734278,157.06,157.03,29.21310161]
[1749489359370,6.36734278,157.06,157.03,18.64964886]
[1749489361123,29.21310161,157.04,157.0,6.1852]
[1749489361327,29.21310161,157.03,156.99,18.64964886]
[1749489361626,29.21310161,157.01,156.97,18.64964886]
[1749489361848,29.21310161,157.02,156.98,29.21310161]
[1749489362019,29.21310161,157.02,156.97,18.64964886]
[1749489362020,29.21310161,157.02,156.97,47.86275047]
[1749489362216,29.21310161,157.02,156.98,29.21310161]
[1749489362832,29.21310161,157.03,156.98,29.21310161]
[1749489363004,22.29015411,157.02,156.98,29.21310161]
[1749489363211,22.29015411,157.02,156.97,18.64964886]
[1749489363420,51.50325572,157.02,156.98,29.21310161]
[1749489363611,51.50325572,157.02,156.97,18.64964886]
[1749489363820,22.29015411,157.02,156.97,47.86275047]
[1749489364110,22.29015411,157.02,156.98,29.21310161]
[1749489364734,51.50325572,157.02,156.98,29.21310161]
[1749489364939,6.36942675,157.0,156.96,18.933972]
[1749489365237,6.36942675,157.0,156.97,29.21310161]
[1749489365614,22.29299362,157.0,156.96,48.14707361]
[1749489365813,22.29299362,157.0,156.98,29.21310161]
[1749489366025,6.36942675,157.0,156.99,29.21310161]
[1749489366236,6.36900251,157.02,157.0,18.64964886]
[1749489366513,6.36900251,157.02,157.01,29.21310161]
[1749489366935,6.36900251,157.02,156.98,29.21310161]
[1749489367134,6.36900251,157.02,156.99,18.64964886]
[1749489367135,35.58210412,157.02,156.99,18.64964886]
[1749489367614,6.36900251,157.02,156.98,29.21310161]
[1749489367951,6.36900251,157.02,157.0,29.21310161]
[1749489368160,6.6429,157.14,157.0,0.28432314]
[1749489368362,6.6429,157.14,157.03,0.28432314]
[1749489368363,44.796,157.13,157.03,0.28432314]
[1749489368518,26.0,157.11,157.04,47.86275047]
[1749489368722,29.21310161,157.08,157.04,18.64964886]
[1749489368956,22.28163992,157.08,157.04,18.64964886]
[1749489369258,22.28163992,157.08,157.01,48.14707361]
[1749489369458,22.28163992,157.08,156.99,26.0]
[1749489369459,29.21310161,157.04,156.99,26.0]
[1749489369669,29.21310161,157.04,157.0,18.64964886]
[1749489369964,22.28163992,157.08,156.97,18.64964886]
[1749489369965,29.21310161,157.01,156.97,18.64964886]
[1749489370174,29.21310161,156.99,156.97,18.64964886]
[1749489370463,29.21310161,156.99,156.95,6.3121]
[1749489370651,29.21310161,156.98,156.96,18.64964886]
[1749489371149,35.58374568,156.97,156.94,18.64964886]
[1749489371655,29.21310161,156.96,156.91,47.86275047]
[1749489371837,29.21310161,156.96,156.91,18.64964886]
[1749489372036,29.21310161,156.96,156.91,47.86275047]
[1749489372470,6.37064407,156.97,156.91,47.86275047]
[1749489372471,29.21310161,156.95,156.91,18.64964886]
[1749489372967,29.21310161,156.93,156.9,6.3968]
[1749489373130,6.37267397,156.92,156.9,6.3968]
[1749489373857,35.58577558,156.92,156.9,6.3968]
[1749489374357,6.37267397,156.92,156.9,6.3968]
[1749489374846,6.37267397,156.92,156.86,6.37501593]
[1749489374847,29.21310161,156.91,156.86,18.64964886]
[1749489375024,35.58722509,156.89,156.87,0.28432314]
[1749489375223,35.58722509,156.89,156.86,18.64964886]
[1749489375869,35.58722509,156.89,156.87,0.14216157]
[1749489376766,29.21310161,156.88,156.86,18.64964886]
[1749489376936,29.21310161,156.88,156.85,18.64964886]
[1749489377145,35.58771573,156.88,156.85,18.64964886]
[1749489377541,29.21310161,156.86,156.84,18.64964886]
[1749489378068,29.21310161,156.88,156.85,0.28432314]
[1749489378381,6.37104994,156.96,156.88,44.933972]
[1749489378571,29.21310161,156.95,156.91,26.0]
[1749489378737,29.21310161,156.94,156.91,18.64964886]
[1749489378942,29.21310161,156.93,156.9,0.28432314]
[1749489379261,35.58543886,156.93,156.9,18.933972]
[1749489379459,35.58543886,156.93,156.88,29.21310161]
[1749489379659,6.37233725,156.93,156.89,18.64964886]
[1749489379845,29.21310161,156.9,156.88,0.28432314]
[1749489380046,29.21310161,156.9,156.87,18.64964886]
[1749489380777,29.21310161,156.89,156.86,18.64964886]
[1749489381351,35.5873791,156.89,156.86,18.64964886]
[1749489382172,29.21310161,156.88,156.86,18.64964886]
[1749489382555,29.21310161,156.88,156.85,18.79181043]
[1749489383251,35.58770899,156.88,156.85,18.79181043]
[1749489383452,6.37460738,156.88,156.85,18.79181043]
[1749489383655,35.58770899,156.88,156.85,18.79181043]
[1749489384070,6.37460738,156.88,156.85,18.79181043]
[1749489384670,6.37460738,156.88,156.85,48.00491204]
[1749489386060,6.37460738,156.88,156.85,18.79181043]
[1749489386471,35.58770899,156.88,156.84,18.933972]
[1749489386670,35.58770899,156.88,156.84,18.64964886]
[1749489387159,35.58770899,156.88,156.84,47.86275047]
[1749489387867,35.58770899,156.88,156.84,18.64964886]
[1749489388076,6.37460738,156.88,156.85,29.21310161]
[1749489388253,35.58770899,156.88,156.84,47.86275047]
[1749489389181,35.58770899,156.88,156.85,2.35916813]
[1749489389477,35.58770899,156.88,156.84,47.86275047]
[1749489389676,35.58770899,156.88,156.85,2.35918731]
[1749489389979,35.58770899,156.88,156.84,47.86275047]
[1749489389980,35.58770899,156.88,156.84,18.64964886]
[1749489390164,35.58770899,156.88,156.85,2.3591604]
[1749489390366,35.58770899,156.88,156.84,47.86275047]
[1749489390767,35.58770899,156.88,156.85,2.35916517]
[1749489390968,35.58770899,156.88,156.84,47.86275047]
[1749489391267,35.58770899,156.88,156.85,2.35923187]
[1749489391473,35.58770899,156.88,156.84,47.86275047]
[1749489391666,35.58770899,156.88,156.85,2.35932234]
[1749489391867,35.58770899,156.88,156.84,47.86275047]
[1749489392067,35.58770899,156.88,156.85,2.35930252]
[1749489392279,35.58770899,156.88,156.84,18.64964886]
[1749489392489,29.21310161,156.87,156.84,18.64964886]
[1749489392669,6.37460738,156.88,156.85,2.35943544]
[1749489392868,35.58770899,156.88,156.84,18.64964886]
[1749489393066,6.37460738,156.88,156.85,2.35960706]
[1749489393271,35.58770899,156.88,156.84,47.86275047]
[1749489393871,35.58770899,156.88,156.85,2.35783894]
[1749489394084,35.58770899,156.88,156.84,47.86275047]
[1749489394279,6.37406729,156.89,156.86,18.64964886]
[1749489394561,6.37358275,156.9,156.88,29.21310161]
[1749489395382,6.37267397,156.92,156.88,29.21310161]
[1749489395696,29.21310161,156.9,156.86,71.69310161]
[1749489396183,29.21310161,156.89,156.86,42.48]
[1749489396385,35.58740043,156.88,156.86,42.48]
[1749489396561,35.58740043,156.88,156.84,18.64964886]
[1749489396765,29.21310161,156.87,156.84,18.64964886]
[1749489397177,29.21310161,156.85,156.82,18.64964886]
[1749489397385,29.21310161,156.84,156.79,18.3794]
[1749489397603,29.21310161,156.83,156.8,47.00224143]
[1749489397771,29.21310161,156.84,156.8,73.86275047]
[1749489397965,29.21310161,156.84,156.8,47.86275047]
[1749489398387,6.37633105,156.83,156.8,47.86275047]
[1749489398789,6.37633105,156.83,156.81,18.64964886]
[1749489399171,6.37633105,156.83,156.8,18.79181043]
[1749489399611,6.37633105,156.83,156.8,48.00491204]
[1749489400404,6.37633105,156.83,156.8,18.79181043]
[1749489400619,35.58943266,156.83,156.8,18.64964886]
[1749489400810,29.21310161,156.81,156.75,6.0578]
[1749489401109,29.21310161,156.79,156.76,18.64964886]
[1749489401270,29.21310161,156.8,156.76,18.64964886]
[1749489401472,29.21310161,156.8,156.77,2.35483156]
[1749489401673,29.21310161,156.8,156.76,18.64964886]
[1749489401674,29.21310161,156.79,156.76,18.64964886]
[1749489401951,29.21310161,156.8,156.76,18.64964886]
[1749489402213,29.21310161,156.8,156.76,47.86275047]
[1749489402413,6.37795777,156.79,156.76,47.86275047]
[1749489402711,6.37795777,156.79,156.77,2.35945816]
[1749489402910,6.37795777,156.79,156.76,47.86275047]
[1749489403200,29.21310161,156.78,156.75,18.64964886]
[1749489403810,35.59105938,156.79,156.76,2.36002859]
[1749489404012,35.59105938,156.79,156.75,47.86275047]
[1749489404495,15.94339246,156.81,156.75,47.86275047]
[1749489404707,29.21310161,156.79,156.76,4.72071747]
[1749489404876,29.21310161,156.79,156.74,47.86275047]
[1749489405083,29.21310161,156.79,156.75,33.93447114]
[1749489405393,29.21310161,156.79,156.74,47.86275047]
[1749489406323,29.21310161,156.8,156.76,18.64964886]
[1749489406621,35.59090017,156.8,156.76,18.64964886]
[1749489406992,29.21310161,156.79,156.76,18.64964886]
[1749489408521,35.59123395,156.79,156.76,18.64964886]
[1749489409016,35.59123395,156.79,156.75,18.64964886]
[1749489409220,35.59123395,156.79,156.76,7.09837753]
[1749489409408,29.21310161,156.78,156.77,4.73225169]
[1749489409724,29.21310161,156.78,156.76,4.73228771]
[1749489409920,29.21310161,156.78,156.77,4.73192624]
[1749489410217,6.37852514,156.78,156.75,18.64964886]
[1749489410415,35.59117811,156.79,156.76,7.09701418]
[1749489410717,35.59117811,156.79,156.77,2.36564303]
[1749489410921,35.59117811,156.79,156.75,47.86275047]
[1749489411132,35.59117811,156.79,156.76,2.36553485]
[1749489411418,35.59117811,156.79,156.77,4.73084265]
[1749489411602,35.59117811,156.79,156.78,4.73074681]
[1749489412114,35.59117811,156.79,156.75,18.64964886]
[1749489412321,35.59117811,156.79,156.76,2.36499255]
[1749489412519,35.59117811,156.79,156.77,7.09594073]
[1749489412724,35.59117811,156.79,156.78,4.73062739]
[1749489412914,35.59117811,156.79,156.75,18.64964886]
[1749489413906,22.31862018,156.82,156.75,18.64964886]
[1749489414102,29.21310161,156.81,156.76,29.21310161]
[1749489414316,29.21310161,156.79,156.75,47.86275047]
[1749489414624,29.21310161,156.79,156.76,4.70421952]
[1749489414816,29.21310161,156.79,156.75,18.64964886]
[1749489415017,29.21310161,156.79,156.76,4.70464952]
[1749489415197,29.21310161,156.79,156.75,47.86275047]
[1749489415399,29.21310161,156.8,156.75,47.86275047]
[1749489416038,6.37795777,156.79,156.75,47.86275047]
[1749489416235,35.59105938,156.79,156.75,18.64964886]
[1749489416522,6.37795777,156.79,156.74,18.64964886]
[1749489416824,12.34,156.84,156.78,47.86275047]
[1749489417011,12.34,156.84,156.8,29.21310161]
[1749489417208,29.21310161,156.83,156.8,18.64964886]
[1749489417414,29.21310161,156.82,156.78,29.21310161]
[1749489417924,29.21310161,156.8,156.77,41.94]
[1749489418112,35.59104761,156.8,156.77,41.94]
[1749489418515,6.377946,156.8,156.77,29.21310161]
[1749489418702,29.21310161,156.81,156.75,25.31350819]
[1749489418703,6.37633105,156.83,156.79,29.21310161]
[1749489418899,6.37633105,156.83,156.79,18.64964886]
[1749489419106,29.21310161,156.81,156.78,18.64964886]
[1749489419306,29.21310161,156.79,156.76,18.64964886]
[1749489419507,29.21310161,156.78,156.76,18.64964886]
[1749489419712,29.21310161,156.78,156.74,97.11310161]
[1749489419713,29.21310161,156.78,156.75,18.64964886]
[1749489420635,35.591238,156.79,156.75,47.86275047]
[1749489420933,35.591238,156.79,156.76,2.35917418]
[1749489421234,35.591238,156.79,156.75,11.44964886]
[1749489421828,35.591238,156.79,156.76,2.35970969]
[1749489422011,35.591238,156.79,156.75,11.44964886]
[1749489422215,35.591238,156.79,156.76,2.35947509]
[1749489422428,29.21310161,156.78,156.75,11.44964886]
[1749489422725,29.21310161,156.77,156.73,11.86]
[1749489422932,29.21310161,156.77,156.74,2.359376]
[1749489423110,29.21310161,156.77,156.73,41.07310161]
[1749489423309,29.21310161,156.77,156.74,2.35893878]
[1749489423534,29.21310161,156.77,156.75,2.35893878]
[1749489423733,29.21310161,156.77,156.73,29.21310161]
[1749489423931,29.21310161,156.77,156.74,2.36229106]
[1749489424232,29.21310161,156.77,156.73,29.21310161]
[1749489424451,6.37917836,156.76,156.74,2.3619989]
[1749489424630,35.59203127,156.77,156.73,29.21310161]
[1749489424816,6.37892966,156.77,156.74,31.57478146]
[1749489425022,6.37892966,156.77,156.75,2.36156435]
[1749489425331,6.37714431,156.81,156.76,2.36103581]
[1749489425526,29.21310161,156.79,156.75,29.21310161]
[1749489426326,6.37714431,156.81,156.76,29.21310161]
[1749489426523,6.37714431,156.81,156.77,31.57470292]
[1749489426731,35.59001074,156.82,156.78,31.57470292]
[1749489426935,35.59001074,156.82,156.78,29.21310161]
[1749489427129,6.37690913,156.82,156.78,29.21310161]
[1749489427336,35.59001074,156.82,156.78,29.21310161]
[1749489427635,35.59001074,156.82,156.78,18.64964886]
[1749489429938,35.59001074,156.82,156.78,47.86275047]
[1749489430334,35.59001074,156.82,156.78,18.64964886]
[1749489430507,29.21310161,156.81,156.77,18.64964886]
[1749489430835,29.21310161,156.81,156.77,47.86275047]
[1749489431143,22.31875328,156.82,156.76,70.95310161]
[1749489431144,29.21310161,156.8,156.76,70.95310161]
[1749489431350,22.31875328,156.82,156.76,70.95310161]
[1749489431514,51.53185489,156.82,156.77,31.57709694]
[1749489431714,51.53185489,156.82,156.77,29.21310161]
[1749489431966,29.21310161,156.81,156.77,29.21310161]
[1749489432440,22.31875328,156.82,156.74,70.81310161]
[1749489432744,29.21310161,156.79,156.74,70.81310161]
[1749489432920,29.21310161,156.79,156.74,29.21310161]
[1749489433120,29.21310161,156.78,156.74,29.21310161]
[1749489433626,29.21310161,156.79,156.75,29.21310161]
[1749489433822,6.37795777,156.79,156.75,29.21310161]
[1749489434441,6.37795777,156.79,156.77,18.64964886]
[1749489435042,35.59105938,156.79,156.76,18.64964886]
[1749489435243,29.21310161,156.78,156.76,18.64964886]
[1749489435425,35.59105938,156.79,156.76,18.64964886]
[1749489437345,41.85800043,156.79,156.75,0.28432314]
[1749489437541,19.53514822,156.77,156.73,18.933972]
[1749489437923,19.53514822,156.77,156.74,2.36333124]
[1749489438120,6.37917836,156.76,156.73,18.933972]
[1749489438335,6.37917836,156.76,156.74,2.36340478]
[1749489438647,6.37917836,156.76,156.73,18.933972]
[1749489438819,25.91432658,156.76,156.73,18.79181043]
[1749489439545,25.91432658,156.76,156.73,18.64964886]
[1749489440138,25.91432658,156.76,156.74,2.37569409]
[1749489440326,25.91432658,156.76,156.73,18.64964886]
[1749489440327,25.91432658,156.76,156.75,2.37569409]
[1749489440533,6.37917836,156.76,156.73,18.64964886]
[1749489440732,6.37917836,156.76,156.73,38.18479708]
[1749489440935,6.37917836,156.76,156.74,2.37556971]
[1749489441130,6.37917836,156.76,156.73,38.18479708]
[1749489441331,6.37917836,156.76,156.74,2.37555589]
[1749489441653,6.37917836,156.76,156.75,2.37563332]
[1749489441826,25.91432658,156.76,156.73,18.64964886]
[1749489442027,19.53514822,156.75,156.74,2.3758268]
[1749489442344,19.53514822,156.76,156.73,18.64964886]
[1749489443154,19.53514822,156.76,156.74,7.12876506]
[1749489443449,19.53514822,156.75,156.71,19.67730979]
[1749489443632,19.53514822,156.74,156.72,7.12975448]
[1749489443960,19.53514822,156.76,156.73,2.37676166]
[1749489444163,25.91473354,156.75,156.74,7.13125522]
[1749489444327,25.91473354,156.75,156.74,7.13151077]
[1749489444532,25.91473354,156.75,156.74,2.37722507]
[1749489444847,25.91473354,156.75,156.74,7.11473246]
[1749489445063,25.91473354,156.75,156.74,2.37168909]
[1749489445228,41.86369685,156.75,156.74,4.74360273]
[1749489445431,41.86369685,156.75,156.68,18.64964886]
[1749489445755,19.53514822,156.72,156.68,18.64964886]
[1749489445941,19.53514822,156.72,156.68,38.18479708]
[1749489446126,19.53514822,156.73,156.69,2.37249326]
[1749489446323,19.53514822,156.73,156.68,38.18479708]
[1749489446554,19.53514822,156.73,156.69,2.37261448]